bitfinex-derivatives/quotes_ETHF0:USTF0_20241022
["timestamp","ask_amount","ask_price","bid_price","bid_amount"]
[1729604367902,0.38093,2626.7,2626.6,0.38092]
[1729604368305,3.58869,2626.9,2626.8,0.3809]
[1729604368604,3.2078,2626.9,2626.8,0.3809]
[1729604368809,3.2078,2626.9,2626.8,4.1881]
[1729604369697,0.38085,2627.2,2627.1,0.38085]
[1729604370706,3.58863,2627.3,2627.2,0.38084]
[1729604372101,9.9842,2627.3,2626.4,4.16018]
[1729604372307,0.38091,2626.8,2626.7,0.3809]
[1729604373704,0.38091,2626.8,2626.3,3.2078]
[1729604373705,0.95225,2626.8,2626.3,3.2078]
[1729604373906,0.38094,2626.6,2626.5,0.38093]
[1729604374508,3.2078,2627.0,2626.5,3.8072]
[1729604374805,0.38092,2626.7,2626.6,0.38091]
[1729604375203,0.38092,2626.7,2626.2,0.95244]
[1729604375204,0.38094,2626.6,2626.5,0.38093]
[1729604375402,2.97,2626.8,2626.3,0.95242]
[1729604375608,0.38091,2626.8,2626.7,0.3809]
[1729604376107,0.38092,2626.7,2626.6,0.38091]
[1729604379109,2.97,2626.8,2626.0,3.2078]
[1729604379309,0.38097,2626.4,2626.3,0.38095]
[1729604379709,0.381,2626.1,2626.0,3.58879]
[1729604380210,0.381,2626.1,2626.0,7.39679]
[1729604380913,0.381,2626.2,2626.1,0.38098]
[1729604382114,0.95236,2626.5,2626.0,3.2078]
[1729604382415,0.38097,2626.4,2626.3,0.38095]
[1729604382613,2.97,2626.6,2626.1,0.9525]
[1729604382815,0.38095,2626.5,2626.4,0.38094]
[1729604384615,3.2078,2626.7,2626.1,0.9525]
[1729604384817,0.38093,2626.6,2626.5,0.38092]
[1729604385014,3.58872,2626.7,2626.6,0.38092]
[1729604386514,3.2078,2626.7,2626.6,0.38092]
[1729604387617,3.58871,2626.7,2626.6,0.38092]
[1729604387819,7.015,2626.7,2626.1,0.95247]
[1729604388015,3.35096,2626.5,2626.4,0.38094]
[1729604388410,3.92236,2626.5,2625.9,0.95257]
[1729604388615,0.38104,2625.9,2625.8,0.38102]
[1729604388917,0.38104,2625.8,2625.7,3.58885]
[1729604389914,0.38104,2625.8,2625.7,3.2078]
[1729604390314,0.38104,2625.8,2625.7,3.58886]
[1729604390719,0.38104,2625.8,2625.7,3.2078]
[1729604391320,0.38104,2625.8,2625.7,3.58886]
[1729604391519,0.38104,2625.8,2625.7,3.2078]
[1729604391819,0.38104,2625.8,2625.7,3.58886]
[1729604392821,0.38104,2625.8,2625.7,3.2078]
[1729604393023,0.38104,2625.8,2625.7,3.58886]
[1729604393219,0.38104,2625.8,2625.7,3.2078]
[1729604393518,0.38104,2625.8,2625.7,3.58886]
[1729604393720,0.38104,2625.8,2625.7,3.2078]
[1729604393922,2.97,2625.9,2625.5,0.38107]
[1729604394218,2.97,2625.9,2625.6,0.38106]
[1729604394219,0.38108,2625.7,2625.6,0.38106]
[1729604394924,0.38109,2625.6,2625.5,0.38107]
[1729604395319,0.44194891,2625.6,2625.5,0.38107]
[1729604395524,0.38109,2625.6,2625.5,0.38107]
[1729604397830,0.38111,2625.4,2625.3,0.38109]
[1729604398327,6.1778,2625.7,2625.1,0.95286]
[1729604398528,0.44194952,2625.6,2625.5,0.38107]
[1729604400728,0.06085952,2625.6,2625.1,0.95286]
[1729604400925,0.3811,2625.5,2625.4,0.38109]
[1729604401931,9.80963707,2625.5,2624.4,3.2078]
[1729604402126,3.35123,2624.5,2624.4,3.2078]
[1729604402335,0.38126,2624.4,2624.3,0.38125]
[1729604402530,3.35124,2624.5,2624.4,0.38124]
[1729604402732,0.38126,2624.4,2624.3,0.38125]
[1729604403927,2.97,2624.5,2624.1,3.2078]
[1729604404129,0.38127,2624.2,2624.1,3.58909]
[1729604404631,0.38127,2624.2,2624.1,3.2078]
[1729604404830,2.97,2624.3,2623.8,3.2078]
[1729604405033,0.38129,2624.1,2624.0,0.38129]
[1729604405330,2.97,2624.6,2623.9,0.9533]
[1729604405523,2.97,2624.6,2624.2,3.2078]
[1729604405724,0.38126,2624.3,2624.2,0.38127]
[1729604405929,7.13086,2624.6,2623.8,3.2078]
[1729604406134,0.38128,2624.2,2624.1,0.38127]
[1729604406433,0.38127,2624.3,2624.2,0.38126]
[1729604407431,0.38127,2624.3,2623.8,3.2078]
[1729604407432,3.8104,2624.3,2623.8,3.2078]
[1729604407626,0.38136,2623.7,2623.6,0.38135]
[1729604407830,0.38136,2623.6,2623.5,3.58916]
[1729604408031,2.97,2623.9,2623.5,3.2078]
[1729604408333,0.38133,2623.8,2623.6,0.38135]
[1729604408632,0.38135,2623.7,2623.6,0.38136]
[1729604408835,0.38138,2623.5,2623.3,3.58919]
[1729604409028,3.35139,2623.4,2623.3,3.2078]
[1729604409235,2.97,2623.4,2623.3,3.5892]
[1729604409537,3.35131,2624.0,2623.9,0.38132]
[1729604409734,2.97,2624.0,2623.9,0.38132]
[1729604410129,2.97,2624.0,2623.4,0.95346]
[1729604410326,2.97,2623.7,2623.6,0.38135]
[1729604411433,6.7812,2623.7,2623.3,3.2078]
[1729604411632,2.97,2623.5,2623.0,4.16142]
[1729604411833,2.97,2623.5,2623.4,0.38139]
[1729604413442,3.35137,2623.5,2623.4,0.38139]
[1729604414043,2.97,2623.5,2623.4,0.38139]
[1729604414948,2.97,2623.5,2623.3,0.3814]
[1729604415235,2.97,2623.5,2623.4,0.38139]
[1729604416037,3.35137,2623.5,2623.4,0.38139]
[1729604416345,2.97,2623.5,2623.0,4.16141]
[1729604416641,3.35139,2623.5,2623.4,0.38139]
[1729604416838,2.97,2623.5,2623.4,0.38139]
[1729604417843,3.35137,2623.5,2623.4,0.38139]
[1729604418956,2.97,2623.5,2623.4,5.36058283]
[1729604419139,2.97,2623.5,2623.4,0.38139]
[1729604419335,2.97,2623.9,2623.3,4.1613]
[1729604419540,2.97,2623.9,2623.8,0.38132]
[1729604421844,6.55909,2624.1,2623.6,3.2078]
[1729604422145,6.55909,2624.1,2624.0,0.3813]
[1729604422348,6.1778,2624.1,2623.6,4.16118]
[1729604422646,6.5591,2624.1,2624.0,0.3813]
[1729604423048,2.97,2624.3,2623.7,0.95336]
[1729604423346,3.35127,2624.3,2624.2,0.38126]
[1729604423842,0.38128,2624.2,2624.1,0.38128]
[1729604424048,2.97,2624.3,2624.1,0.38128]
[1729604424343,0.38129,2624.2,2624.1,0.38128]
[1729604425047,2.97,2624.3,2623.8,0.95332]
[1729604425247,2.97,2624.3,2624.2,0.38127]
[1729604425552,3.35124,2624.5,2624.4,0.38124]
[1729604425849,2.97,2624.5,2624.4,0.38124]
[1729604426153,6.1778,2624.7,2624.6,0.38122]
[1729604426349,6.559,2624.7,2624.6,0.38122]
[1729604426647,6.1778,2624.7,2624.2,0.95316]
[1729604426836,3.35125,2624.4,2624.3,0.38126]
[1729604427158,2.97,2624.4,2624.3,0.38126]
[1729604427455,2.97,2624.4,2623.9,40.8]
[1729604427639,0.38126,2624.3,2624.2,0.38126]
[1729604427948,0.38126,2624.3,2623.8,0.95331]
[1729604427949,0.38129,2624.2,2624.1,0.38128]
[1729604428149,3.35127,2624.2,2624.1,0.38128]
[1729604428349,2.97,2624.2,2624.1,0.38128]
[1729604429245,3.35127,2624.2,2624.1,0.38128]
[1729604430356,0.38129,2624.1,2624.0,0.38129]
[1729604430739,0.38133,2623.9,2623.8,0.38132]
[1729604430947,0.38135,2623.7,2623.6,0.38135]
[1729604431147,3.35135,2623.7,2623.6,0.38135]
[1729604431345,0.38137,2623.6,2623.5,0.38136]
[1729604431550,2.97,2623.7,2623.0,4.16141]
[1729604431758,0.38137,2623.6,2623.5,0.38136]
[1729604432050,2.97,2623.7,2623.1,0.95358]
[1729604432352,0.38137,2623.6,2623.5,0.38136]
[1729604432558,2.97,2623.7,2623.6,0.38136]
[1729604432748,0.38136,2623.7,2623.1,2.97]
[1729604433052,0.38136,2623.7,2623.6,0.38135]
[1729604433848,3.2078,2623.8,2623.3,0.95352]
[1729604434044,3.2078,2623.8,2623.7,0.38135]
[1729604434045,3.58914,2623.8,2623.7,0.38135]
[1729604434451,7.40034,2623.8,2623.7,0.38135]
[1729604435352,0.38138,2623.5,2623.4,0.38137]
[1729604435555,2.97,2623.5,2623.4,0.38139]
[1729604436844,9.9898,2623.5,2623.0,0.38145]
[1729604437052,9.9898,2623.5,2622.9,0.95364]
[1729604437053,2.97,2623.2,2623.1,0.38143]
[1729604438353,2.97,2623.4,2622.9,4.16144]
[1729604438554,3.35139,2623.4,2623.3,0.38138]
[1729604439051,2.97,2623.4,2623.3,0.38138]
[1729604439254,3.35137,2623.6,2623.5,0.38136]
[1729604440250,2.97,2623.6,2623.5,0.38136]
[1729604440556,3.35136,2623.6,2623.5,0.38136]
[1729604442357,2.97,2623.6,2623.1,0.95359]
[1729604442560,0.38145,2623.1,2623.0,0.38143]
[1729604442749,3.35145,2623.1,2622.4,0.95382]
[1729604442953,0.38148,2622.9,2622.8,0.38147]
[1729604443256,3.35148,2622.9,2622.8,0.38147]
[1729604443647,2.97,2622.9,2622.8,0.38147]
[1729604443850,0.38145,2623.0,2622.9,0.38145]
[1729604444052,3.35144,2623.1,2623.0,0.38145]
[1729604445756,2.97,2623.1,2623.0,0.38145]
[1729604446159,3.35143,2623.1,2623.0,0.38145]
[1729604446359,2.97,2623.1,2622.7,0.95373]
[1729604446560,3.35144,2623.1,2623.0,0.38145]
[1729604446958,0.38146,2623.0,2622.9,0.38145]
[1729604447651,2.97,2623.1,2622.7,0.95373]
[1729604447857,3.35144,2623.1,2623.0,0.38145]
[1729604448063,2.97,2623.1,2622.7,0.95373]
[1729604448257,3.35144,2623.1,2623.0,0.38145]
[1729604448460,3.2078,2623.2,2623.1,0.38143]
[1729604448660,3.58922,2623.2,2623.1,0.38143]
[1729604449162,0.38145,2623.1,2623.0,0.38144]
[1729604449364,3.35145,2623.1,2623.0,0.38144]
[1729604452059,0.38147,2623.0,2622.9,0.38145]
[1729604452867,0.38149,2622.8,2622.7,0.38148]
[1729604453072,3.35149,2622.8,2622.7,0.38148]
[1729604453468,2.97,2622.8,2622.7,0.38148]
[1729604453772,3.35148,2622.8,2622.7,0.38148]
[1729604454575,0.38149,2622.7,2622.6,3.5893]
[1729604454761,3.35149,2622.7,2622.6,3.5893]
[1729604455867,2.97,2622.9,2622.8,0.38148]
[1729604456072,0.38146,2623.0,2622.9,0.38145]
[1729604456668,2.97,2623.1,2622.6,3.2078]
[1729604456873,0.38149,2622.7,2622.6,3.2078]
[1729604457177,0.38149,2622.7,2622.6,3.58931]
[1729604457669,0.38149,2622.7,2622.6,3.2078]
[1729604457860,0.38153,2622.6,2622.5,0.38151]
[1729604460172,6.1778,2622.8,2622.3,0.95388]
[1729604460372,0.38151,2622.7,2622.6,0.3815]
[1729604461574,7.1315,2622.8,2622.1,0.95393]
[1729604461874,2.97,2622.2,2622.1,0.38158]
[1729604462094,6.1778,2622.4,2622.3,0.38155]
[1729604462581,3.35153,2622.4,2622.3,0.38155]
[1729604463071,2.97,2622.8,2622.0,6.1778]
[1729604463276,2.97,2622.8,2622.6,0.38151]
[1729604463277,0.3815,2622.7,2622.6,0.38151]
[1729604463579,0.38151,2622.6,2622.5,0.38151]
[1729604464374,6.5593,2622.7,2622.6,0.38151]
[1729604464571,6.5593,2622.7,2622.2,0.95391]
[1729604464778,3.35154,2622.4,2622.3,0.38154]
[1729604464972,2.97,2622.6,2622.0,3.2078]
[1729604465180,3.2078,2622.7,2622.6,0.38151]
[1729604465890,2.97,2623.0,2622.9,0.38146]
[1729604466074,0.38142,2623.2,2622.7,0.95373]
[1729604466275,3.35144,2623.1,2623.0,0.38144]
[1729604466484,3.35144,2623.1,2622.7,0.95373]
[1729604466485,0.38145,2623.0,2622.9,0.38145]
[1729604467082,3.8128,2623.0,2622.3,4.16168]
[1729604467280,0.3815,2622.7,2622.6,0.3815]
[1729604470579,2.97,2622.8,2622.1,3.92393]
[1729604470580,0.38151,2622.6,2622.5,0.38151]
[1729604470779,0.3815,2622.7,2622.6,0.38149]
[1729604472180,2.97,2622.8,2622.3,0.95387]
[1729604472383,3.35148,2622.8,2622.7,0.38149]
[1729604472784,0.3815,2622.7,2622.6,0.38149]
[1729604473486,3.2078,2622.7,2622.1,0.95394]
[1729604473688,0.38153,2622.5,2622.4,0.38152]
[1729604473887,3.35151,2622.6,2622.5,0.38152]
[1729604474089,0.3815,2622.7,2622.6,0.38149]
[1729604475197,3.2078,2622.8,2622.7,0.38149]
[1729604475397,3.58928,2622.8,2622.7,0.38149]
[1729604476288,3.2078,2622.8,2622.7,0.38149]
[1729604476484,3.58928,2622.8,2622.7,0.38149]
[1729604476986,0.3815,2622.7,2622.6,0.3815]
[1729604477894,0.3815,2622.7,2622.2,0.9539]
[1729604477895,6.1778,2622.8,2622.2,0.9539]
[1729604478097,2.97,2622.4,2621.7,0.9541]
[1729604478287,2.97,2622.1,2621.2,6.1778]
[1729604478486,2.97,2621.6,2621.2,3.2078]
[1729604478694,2.97,2621.6,2621.5,0.38167]
[1729604479193,0.38164,2621.7,2621.6,0.38165]
[1729604479393,0.38167,2621.6,2621.5,0.38165]
[1729604479593,0.38173,2621.1,2621.0,0.38174]
[1729604479788,2.97,2621.1,2620.6,4.1623]
[1729604479991,3.35172,2621.1,2621.0,0.38173]
[1729604480296,0.38176,2620.9,2620.8,0.38176]
[1729604480599,0.38176,2620.9,2620.6,3.2078]
[1729604480600,2.97,2620.9,2620.6,3.2078]
[1729604480890,2.97,2620.9,2620.8,0.38177]
[1729604481400,0.38175,2621.0,2620.8,0.38176]
[1729604481590,3.35175,2621.0,2620.8,0.38176]
[1729604482391,2.97,2621.0,2620.8,0.38176]
[1729604482692,2.97,2621.0,2620.7,0.38178]
[1729604482893,0.38176,2620.9,2620.6,0.38179]
[1729604483089,2.97,2621.0,2620.3,0.95458]
[1729604483289,3.2078,2621.3,2620.6,0.3818]
[1729604483290,2.97,2620.8,2620.6,0.3818]
[1729604483490,2.97,2620.8,2620.1,3.2078]
[1729604483686,2.97,2620.6,2620.1,3.2078]
[1729604483896,2.97,2620.6,2620.5,1.90823625]
[1729604484100,2.97,2620.8,2620.5,1.52642625]
[1729604484292,2.97,2620.8,2620.7,0.38178]
[1729604485496,6.1778,2621.0,2620.9,0.38175]
[1729604486497,10.37475,2621.0,2620.7,0.38177]
[1729604486697,10.37475,2621.0,2620.5,1.52642625]
[1729604486698,2.97,2620.7,2620.5,1.52642625]
[1729604487198,2.97,2620.7,2620.6,0.3818]
[1729604488395,2.97,2620.7,2620.5,1.52642625]
[1729604488598,2.97,2620.7,2620.6,0.3818]
[1729604488999,3.35178,2620.7,2620.6,0.3818]
[1729604489501,2.97,2620.7,2620.6,0.3818]
[1729604490295,3.2078,2621.3,2620.6,0.9545]
[1729604490598,6.1778,2621.3,2621.2,0.38171]
[1729604490798,3.2078,2621.6,2621.4,0.38168]
[1729604491001,2.97,2621.7,2621.6,0.38165]
[1729604491493,3.2078,2622.0,2621.9,0.38161]
[1729604492495,2.97,2622.3,2622.0,0.38159]
[1729604492695,2.97,2622.3,2622.2,0.38156]
[1729604493294,2.97,2622.3,2622.0,0.38159]
[1729604493600,2.97,2622.5,2622.4,0.38153]
[1729604493809,3.2078,2622.8,2622.7,0.38149]
[1729604494104,6.1778,2622.8,2622.3,0.95388]
[1729604494305,2.97,2622.6,2622.3,0.95388]
[1729604494501,2.97,2622.6,2622.5,0.38152]
[1729604495700,6.1778,2622.8,2622.7,0.38149]
[1729604496002,6.55928,2622.8,2622.7,0.38149]
[1729604496310,0.38152,2622.6,2622.4,0.38152]
[1729604496503,9.9906,2622.8,2621.8,3.2078]
[1729604496504,2.97,2622.5,2621.8,3.2078]
[1729604496707,3.58932,2622.5,2622.3,0.38154]
[1729604497204,0.38153,2622.4,2622.3,0.38154]
[1729604497409,3.58933,2622.5,2621.9,0.95403]
[1729604497604,2.97,2622.2,2621.9,0.95403]
[1729604497902,2.97,2622.2,2622.1,0.38158]
[1729604498108,2.97,2622.2,2621.4,4.162]
[1729604498301,2.97,2621.8,2621.7,0.38164]
[1729604498704,2.97,2621.8,2621.7,4.19604]
[1729604499196,2.97,2621.8,2621.7,0.38164]
[1729604500204,3.2078,2622.2,2622.1,0.38158]
[1729604500707,0.38154,2622.4,2622.3,0.38155]
[1729604501108,2.97,2622.5,2622.4,0.38153]
[1729604501109,3.35153,2622.5,2622.4,0.38153]
[1729604501411,3.35153,2622.5,2622.3,0.38154]
[1729604501611,2.97,2622.5,2622.4,0.38153]
[1729604502314,3.2078,2622.7,2622.6,0.38151]
[1729604503015,9.9906,2622.7,2622.4,0.38153]
[1729604503309,0.38152,2622.6,2622.5,0.38152]
[1729604503615,0.38152,2622.5,2622.4,0.38153]
[1729604504508,0.38152,2622.5,2622.3,0.38155]
[1729604504509,0.38154,2622.4,2622.3,0.38155]
[1729604504811,2.97,2622.5,2622.0,0.95399]
[1729604505008,0.38154,2622.4,2622.3,0.38154]
[1729604506004,3.35153,2622.5,2622.4,0.38153]
[1729604506205,0.38154,2622.4,2622.3,0.38154]
[1729604506402,0.38155,2622.3,2622.2,0.38156]
[1729604506603,3.58935,2622.3,2622.2,0.38156]
[1729604507005,9.9914,2622.3,2622.0,0.38159]
[1729604507203,0.38161,2621.9,2621.8,0.38162]
[1729604507417,6.1778,2622.0,2621.4,3.2078]
[1729604507714,2.97,2622.0,2621.4,0.9542]
[1729604507906,2.97,2621.8,2621.2,0.95426]
[1729604508106,0.38163,2621.8,2621.7,0.38164]
[1729604508506,3.16309715,2622.0,2621.2,0.95426]
[1729604508709,4.11711715,2622.0,2621.2,0.95426]
[1729604508914,0.38161,2621.9,2621.8,0.38161]
[1729604509120,0.38159,2622.1,2622.0,0.38158]
[1729604509417,0.38156,2622.3,2622.2,0.38156]
[1729604509818,2.97,2622.3,2622.0,0.38158]
[1729604510018,2.97,2622.1,2621.3,6.1778]
[1729604510316,3.58939,2622.1,2621.6,0.95414]
[1729604510517,0.3816,2622.0,2621.9,0.38159]
[1729604511710,2.97,2622.2,2621.7,0.95408]
[1729604511914,3.58935,2622.4,2622.3,0.38155]
[1729604512107,3.2078,2622.4,2622.3,0.38155]
[1729604513513,3.58933,2622.4,2622.3,0.38155]
[1729604513714,3.2078,2622.4,2622.3,0.38155]
[1729604514516,3.58933,2622.4,2622.3,0.38155]
[1729604515019,3.2078,2622.4,2622.3,0.38155]
[1729604516720,3.58933,2622.4,2622.3,0.38155]
[1729604516911,6.55933,2622.4,2622.3,0.38155]
[1729604517309,0.38156,2622.3,2621.7,3.2078]
[1729604517515,6.55934,2622.4,2622.3,0.38155]
[1729604517726,3.2078,2622.4,2622.3,0.38155]
[1729604518820,3.2078,2622.7,2622.6,0.38151]
[1729604519524,6.1778,2622.7,2622.6,0.38151]
[1729604519718,0.38156,2622.3,2622.2,0.38155]
[1729604520028,3.2078,2622.7,2622.0,2.97]
[1729604520225,3.58931,2622.7,2622.6,0.38151]
[1729604520623,0.38152,2622.6,2622.5,0.38151]
[1729604520819,0.38154,2622.5,2622.4,0.38152]
[1729604521122,2.97,2622.6,2621.6,6.1778]
[1729604521331,3.3516,2622.1,2622.0,0.38158]
[1729604521523,2.97,2622.1,2621.6,0.95413]
[1729604521821,0.3816,2622.0,2621.9,0.38159]
[1729604522128,2.97,2622.1,2621.6,0.95413]
[1729604522321,3.35159,2622.1,2622.0,0.38159]
[1729604523027,6.1778,2622.1,2621.6,0.95414]
[1729604523224,0.38162,2621.9,2621.8,0.38161]
[1729604523620,7.13176,2622.1,2621.3,3.2078]
[1729604523621,6.1778,2622.1,2621.3,3.2078]
[1729604523823,0.38161,2622.0,2621.9,0.38159]
[1729604524325,0.38161,2622.0,2621.6,0.95411]
[1729604524326,3.35158,2622.1,2622.0,0.38159]
[1729604524827,4.16164,2622.4,2621.9,0.95402]
[1729604524828,0.38156,2622.3,2621.9,0.95402]
[1729604525022,3.35156,2622.3,2622.2,0.38155]
[1729604525527,3.41221565,2622.3,2622.2,0.38155]
[1729604526130,3.35156,2622.3,2622.2,0.38155]
[1729604526330,3.41221723,2622.3,2622.2,0.38155]
[1729604526529,3.35156,2622.3,2622.2,0.38155]
[1729604526729,6.84425544,2622.3,2621.6,0.95413]
[1729604527028,0.38162,2621.9,2621.8,0.38161]
[1729604527436,3.35161,2622.0,2621.9,0.38161]
[1729604528126,0.38165,2621.8,2621.7,0.38163]
[1729604528436,0.38167,2621.6,2621.5,0.38165]
[1729604528927,0.38167,2621.6,2621.1,0.9543]
[1729604528928,0.38165,2621.7,2621.6,0.38164]
[1729604529123,3.2078,2621.8,2621.7,0.38164]
[1729604529424,0.3816,2622.1,2622.0,0.38159]
[1729604530120,3.35156,2622.3,2622.2,0.38156]
[1729604530330,3.03065552,2622.3,2622.2,0.38156]
[1729604530549,3.35155,2622.3,2622.2,0.38156]
[1729604531729,3.35155,2622.3,2621.5,0.38166]
[1729604531730,0.38164,2621.7,2621.5,0.38166]
[1729604531925,6.1778,2621.8,2621.1,0.95432]
[1729604532130,0.38164,2621.7,2621.2,0.38171]
[1729604532526,3.2078,2621.8,2621.7,0.38164]
[1729604532937,6.55934,2622.4,2622.2,0.38156]
[1729604533134,3.2078,2622.4,2622.3,0.38155]
[1729604533435,3.2078,2622.4,2622.3,4.19515]
[1729604534327,0.38147,2622.9,2622.7,0.38148]
[1729604534530,3.2078,2623.3,2622.4,6.8778]
[1729604534838,0.06069239,2623.2,2622.4,7.83164]
[1729604535043,0.38144,2623.1,2623.0,0.38144]
[1729604535233,3.2078,2623.3,2622.6,0.95377]
[1729604535436,3.2078,2623.6,2622.7,6.8778]
[1729604535735,0.38126,2624.3,2624.0,0.3813]
[1729604535936,0.38134,2623.8,2623.5,0.38137]
[1729604536140,0.38134,2623.8,2622.9,0.95364]
[1729604536141,3.2078,2623.8,2622.9,0.95364]
[1729604536337,6.8778,2623.8,2622.8,3.67]
[1729604536633,6.8778,2623.8,2622.9,0.38145]
[1729604536634,3.2078,2623.4,2622.9,0.38145]
[1729604536840,3.67,2623.3,2622.8,0.38147]
[1729604537138,0.38141,2623.3,2622.7,3.2078]
[1729604537341,0.38143,2623.2,2623.0,0.38144]
[1729604537636,0.38142,2623.2,2623.0,0.38144]
[1729604537829,0.38142,2623.2,2622.5,0.95381]
[1729604538041,0.38142,2623.2,2622.9,0.38145]
[1729604538238,3.67,2623.4,2622.8,0.38147]
[1729604538438,3.2078,2623.3,2622.4,3.2078]
[1729604538647,0.38143,2623.2,2622.4,3.2078]
[1729604538945,0.38141,2623.3,2622.6,0.95377]
[1729604539245,6.8778,2623.6,2623.0,0.38144]
[1729604539246,0.38142,2623.2,2623.0,0.38144]
[1729604539432,6.8778,2623.6,2622.7,0.95374]
[1729604539644,3.2078,2623.6,2622.7,6.8778]
[1729604539945,3.2078,2623.6,2623.5,0.38137]
[1729604540147,0.38141,2623.3,2623.0,3.2078]
[1729604540445,0.3814,2623.4,2623.2,0.38141]
[1729604540836,0.38141,2623.3,2623.1,0.38143]
[1729604541037,3.2078,2623.6,2622.6,4.62374]
[1729604541234,0.3814,2623.3,2623.1,0.38142]
[1729604541441,0.3814,2623.4,2623.2,0.38141]
[1729604541748,3.58917,2623.6,2623.4,0.38138]
[1729604541941,3.2078,2623.6,2622.9,3.2078]
[1729604542138,3.2078,2623.6,2623.1,3.67]
[1729604542337,3.2078,2623.6,2623.5,0.38137]
[1729604542642,3.2078,2623.6,2623.5,4.19337]
[1729604543943,3.2078,2624.1,2623.5,3.812]
[1729604544141,0.38128,2624.2,2624.0,0.3813]
[1729604544444,0.38126,2624.3,2624.0,0.3813]
[1729604544636,0.38129,2624.1,2623.9,0.38131]
[1729604545044,0.38129,2624.1,2623.5,0.95344]
[1729604545238,6.8778,2624.4,2624.0,0.3813]
[1729604545239,0.38128,2624.2,2624.0,0.3813]
[1729604545744,0.38129,2624.1,2624.0,0.3813]
[1729604545943,0.38133,2623.9,2623.7,0.38134]
[1729604546149,0.38133,2623.9,2623.4,3.2078]
[1729604546150,0.38134,2623.8,2623.4,3.2078]
[1729604546443,0.38134,2623.8,2623.6,0.38135]
[1729604546645,0.38133,2623.8,2623.6,0.38136]
[1729604546844,3.67,2623.9,2623.4,3.58918]
[1729604547045,3.67,2623.9,2623.4,3.2078]
[1729604547236,0.38133,2623.8,2623.6,0.38135]
[1729604547548,0.38137,2623.5,2623.4,3.2078]
[1729604547939,3.67,2623.9,2623.4,3.2078]
[1729604548444,3.67,2623.9,2623.5,0.38137]
[1729604548746,0.38136,2623.6,2623.5,0.38137]
[1729604548946,0.38135,2623.7,2623.6,0.38136]
[1729604550247,0.38136,2623.6,2623.5,0.38136]
[1729604550640,0.38136,2623.7,2623.6,0.38136]
[1729604551143,0.38137,2623.6,2623.5,0.38137]
[1729604551544,3.2078,2623.8,2623.1,0.95357]
[1729604551747,3.2078,2623.8,2623.0,3.2078]
[1729604551748,3.67,2623.7,2623.0,3.2078]
[1729604552045,0.38143,2623.2,2623.1,0.38143]
[1729604552244,0.38141,2623.3,2623.2,0.38141]
[1729604552747,3.67,2623.4,2622.7,3.2078]
[1729604553247,0.38144,2623.1,2623.0,0.38144]
[1729604553751,3.58918,2623.5,2623.4,0.38139]
[1729604554046,3.2078,2623.5,2623.4,0.38139]
[1729604554247,3.2078,2623.5,2623.4,4.19339]
[1729604554753,3.2078,2623.5,2623.4,0.38139]
[1729604556354,0.38135,2623.7,2623.6,0.38136]
[1729604556355,3.58915,2623.7,2623.6,0.38136]
[1729604559152,0.95324,2624.1,2623.3,0.95351]
[1729604559153,3.2078,2624.1,2623.3,0.95351]
[1729604559352,3.2078,2624.4,2623.6,3.67]
[1729604559552,3.58905,2624.4,2624.3,0.38126]
[1729604559847,4.62304,2624.7,2624.2,0.38127]
[1729604559848,0.38127,2624.3,2624.2,0.38127]
[1729604560064,0.38125,2624.4,2624.3,0.38125]
[1729604560450,0.38124,2624.5,2624.4,0.38123]
[1729604560749,0.38126,2624.3,2624.2,0.38126]
[1729604560955,0.38124,2624.5,2624.4,0.38124]
[1729604561149,0.38126,2624.4,2624.3,0.38125]
[1729604561654,0.38124,2624.5,2624.4,0.38124]
[1729604561956,0.38125,2624.4,2624.3,0.38124]
[1729604562351,6.8778,2624.7,2623.8,40.8]
[1729604562352,3.67,2624.5,2623.8,40.8]
[1729604562650,3.67,2624.5,2624.1,0.38128]
[1729604562651,3.2078,2624.4,2624.1,0.38128]
[1729604562852,3.2078,2624.4,2623.7,0.95336]
[1729604563063,3.2078,2624.4,2624.3,0.38126]
[1729604563354,0.38121,2624.7,2624.6,0.38121]
[1729604563958,3.2078,2624.9,2624.1,4.62322]
[1729604564148,0.38123,2624.5,2624.4,0.38123]
[1729604564553,0.38122,2624.6,2624.5,0.38122]
[1729604564755,0.38121,2624.7,2624.6,0.3812]
[1729604565555,0.38119,2624.8,2624.7,0.38119]
[1729604565856,0.38122,2624.6,2624.5,0.38122]
[1729604566058,7.0174,2624.9,2624.1,0.95321]
[1729604566059,3.2078,2624.9,2624.1,0.95321]
[1729604566254,3.2078,2624.9,2624.4,0.38123]
[1729604566255,0.38124,2624.5,2624.4,0.38123]
[1729604568763,3.67,2624.7,2623.9,3.2078]
[1729604568964,3.67,2624.7,2623.8,4.62331]
[1729604568965,3.2078,2624.2,2624.1,0.38129]
[1729604569262,0.38125,2624.4,2624.3,0.38126]
[1729604569460,3.2078,2624.6,2624.2,0.38126]
[1729604569461,0.38127,2624.3,2624.2,0.38126]
[1729604569668,0.38129,2624.2,2624.1,0.38128]
[1729604569864,0.95308,2624.5,2623.6,7.83119]
[1729604570060,0.3813,2624.1,2624.0,0.38129]